Cogmind - Beta 17 @@@ ROGUE MODE // 2026.07.17 @ 06:46:34 Player: KuFish Result: Destroyed by 19-I53(R) with Subdweller Machine Gun Performance ------------- Evolutions (0) 0 Regions Visited (3) 600 Robots Destroyed (12) 60 Value Destroyed (265) 265 Prototype IDs (0) 0 Alien Tech Used (0) 0 Bonus (0) 0 TOTAL SCORE: 925 Bonus ------- None Cogmind --------- Core Integrity 0/250 Matter 296/300 Energy 116/125 System Corruption 1% Temperature Cool (0) Movement Walking (120) Location -10/Subcaves Parts ------- > --- POWER (1) -------- Light Ion Engine > --- PROPULSION (2) --- Aluminum Leg > --- UTILITY (2) ------ Small Storage Unit > --- WEAPON (2) ------- Small Laser Light Assault Rifle > --- INVENTORY (8) ---- Light Ion Engine Light Nuclear Core Core Shielding EM Pulse Gun Peak State ------------ > --- POWER ------------ Light Nuclear Core > --- PROPULSION ------- Light Treads Light Treads > --- UTILITY ---------- Small Storage Unit ECM Suite > --- WEAPON ----------- Light Assault Rifle Light Assault Rifle > --- INVENTORY -------- Light Ion Engine Light Ion Engine Aluminum Leg Aluminum Leg Core Shielding EM Pulse Gun Small Laser Mining Laser [Rating: 9] Favorites ----------- Power Light Nuclear Core Engine Light Ion Engine Power Core Light Nuclear Core Propulsion Light Treads Treads Light Treads Leg Aluminum Leg Utility Small Storage Unit Device ECM Suite Storage Small Storage Unit Weapon Light Assault Rifle Energy Gun EM Pulse Gun Ballistic Gun Light Assault Rifle Special Weapon Mining Laser Build | -11 -10 -10 -10 ------- Run | Yrd Mat Min Sub Slots Evolved . | . . . . Power . | . . . . Propulsion . | . . . . Utility . | . . . . Weapon . | . . . . Parts Attached 14 | 5 3 1 5 Power 3 | 1 . 1 1 Engine 2 | 1 . . 1 Core 1 | . . 1 . Reactor . | . . . . Propulsion 4 | 2 . . 2 Treads 2 | 2 . . . Leg 2 | . . . 2 Wheel . | . . . . Hover . | . . . . Flight . | . . . . Utility 2 | . 2 . . Device 1 | . 1 . . Storage 1 | . 1 . . Processor . | . . . . Hackware . | . . . . Protection . | . . . . Artifact . | . . . . Weapon 5 | 2 1 . 2 Energy Gun 2 | 1 . . 1 Energy Cannon . | . . . . Ballistic Gun 2 | 1 1 . . Ballistic Cannon . | . . . . Launcher . | . . . . Special Weapon 1 | . . . 1 Impact Weapon . | . . . . Slashing Weapon . | . . . . Piercing Weapon . | . . . . Special Melee Weapon . | . . . . Unidentified Prototypes . | . . . . Parts Lost 6 | . . . 6 Power . | . . . . Propulsion 3 | . . . 3 Utility 1 | . . . 1 Weapon 2 | . . . 2 Highest Loss Streak 5 | . . . 5 To Critical Strikes . | . . . . Average Backups 7 | 3 6 7 7 Power 1 | . 1 1 2 Propulsion 1 | 1 2 2 1 Utility 1 | . 1 1 1 Weapon 2 | . 2 3 2 Tool/Special . | . . . . Unused Backups 3 | . 2 . 1 Power . | . . . . Propulsion . | . . . . Utility 2 | . 1 . 1 Weapon 1 | . 1 . . Tool/Special . | . . . . Average Slot Usage (%) 97 | . 94 100 98 Engine 6 | . 14 5 2 Core 7 | . . 8 11 Treads 26 | . 28 28 24 Leg 1 | . . . 2 Device 11 | . 9 14 12 Storage 13 | . 12 14 14 Ballistic Gun 26 | . 26 28 25 Peak Build Rating 9 | 5 7 9 9 Average Rating 7 | 3 6 8 8 On Entrance 5 | . 5 7 9 Avg Prop Armor Cover (%) . | . . . . Naked Turns . | . . . . Heaviest Build 14 | 6 12 14 14 Greatest Support 40 | 40 40 40 40 Greatest Overweight (x) . | . . . . Average Overweight (x) . | . . . . Largest Inventory Capacity 8 | 5 8 8 8 Average Capacity 7 | 5 7 8 8 Most Carried 8 | 5 8 8 8 Average Carried 7 | 3 6 7 7 Final Capacity 8 | 5 8 8 8 Final Carried 8 | 5 7 8 4 Class Distribution -------------------- 100% | Mutant Dominant Class ---------------- Mutant | -10/Materials Mutant | -10/Mines Mutant | -10/Subcaves Resources | -11 -10 -10 -10 ----------- Run | Yrd Mat Min Sub Matter Collected 427 | 170 84 101 72 Remotely . | . . . . Salvage Created 337 | . 103 135 99 Parts 27 | . 8 11 8 Haulers Intercepted . | . . . . Recyclers Shooed . | . . . . Parts Field Recycled . | . . . . Retrieved Matter . | . . . . Parts Self-Destructed 7 | . . . 7 Prevented . | . . . . Parts Restored . | . . . . Kills | -11 -10 -10 -10 ------- Run | Yrd Mat Min Sub Combat Hostiles Destroyed 11 | . 2 5 4 Guns 11 | . 2 5 4 Classes Destroyed 4 | . 2 1 1 Watcher 1 | . 1 . . Swarmer 6 | . . 3 3 Grunt 4 | . 2 2 . Subdweller 1 | . . . 1 Best Kill Streak 3 | . 2 3 3 Combat Bots Only 3 | . 2 3 3 Max Kills in Single Turn 1 | . 1 1 1 Gunslinging . | . . . . Exploded . | . . . . Melee . | . . . . Uniques/NPCs Destroyed . | . . . . Combat | -11 -10 -10 -10 -------- Run | Yrd Mat Min Sub Hostile Shots Fired 95 | . 18 25 52 Missed 20 | . 6 3 11 Hits 75 | . 12 22 41 Projectile 75 | . 12 22 41 Critical Strikes 2 | . . . 2 Damage Taken 1010 | . 118 198 694 Core 272 | . 31 33 208 Absorbed by Shields . | . . . . Core Remaining (%) 100 | 100 . . . Volleys Fired 71 | . 14 15 42 Largest 2 | . 2 2 2 Hottest 100 | . 40 40 100 Shots Fired 120 | . 28 31 61 Gun 111 | . 28 31 52 Cannon . | . . . . Launcher . | . . . . Special 9 | . . . 9 Kinetic 105 | . 28 31 46 Thermal 15 | . . . 15 Explosive . | . . . . Electromagnetic . | . . . . Robot Hit Streak 19 | . 6 8 19 Robot Miss Streak 4 | . 1 4 3 Penetration Max . | . . . . Secondary Targets 2 | . . . 2 Max Gunslinging Chain 1 | . . . 1 Shots Hit Robots 79 | . 15 22 42 Core Hits 26 | . 6 10 10 Critical Kills . | . . . . Critical Parts Destroyed . | . . . . Critical Strikes 1 | . . . 1 Destroy 1 | . . . 1 Melee Attacks . | . . . . Impact . | . . . . Slashing . | . . . . Piercing . | . . . . Sneak Attacks . | . . . . Combat Hostiles . | . . . . Follow-up Attacks . | . . . . Damage Inflicted 621 | . 139 184 298 Guns 621 | . 139 184 298 Cannons . | . . . . Explosions . | . . . . Melee . | . . . . Ramming . | . . . . Kinetic 566 | . 139 184 243 Thermal 55 | . . . 55 Explosive . | . . . . Electromagnetic . | . . . . Impact . | . . . . Slashing . | . . . . Piercing . | . . . . Highest Corruption 1 | . 1 1 1 Average Corruption 1 | . 1 1 1 Corruption Purged . | . . . . Corruption Blocked . | . . . . Effects 8 | . 2 2 4 Message Errors 1 | . 1 . . Matter Fused 1 | . 1 . . Energy Discharges 1 | . . . 1 Data Loss (minor) 2 | . . 1 1 Data Loss (major) 1 | . . . 1 Misfires 2 | . . 1 1 Overload Shots . | . . . . Overflow Damage . | . . . . Projectiles . | . . . . Explosions . | . . . . Melee . | . . . . Knockbacks . | . . . . Impact . | . . . . Kinetic . | . . . . Secondary . | . . . . Self-Inflicted Damage . | . . . . Shots . | . . . . Rammed . | . . . . Targets Rammed . | . . . . Kicked . | . . . . Crushed . | . . . . Highest Temperature 12 | . 6 12 . Average Temperature 5 | . 6 5 . Received Heat Transfer 126 | . 42 60 24 Siege Activations . | . . . . Martial Activations . | . . . . Shielding Activations . | . . . . Robots Disrupted . | . . . . Combat Hostiles . | . . . . Robots Corrupted . | . . . . Combat Hostiles . | . . . . Parts Fried . | . . . . Impact Corruptions . | . . . . Robots Melted . | . . . . Combat Hostiles . | . . . . Parts Melted . | . . . . Heat Transferred 125 | . . . 125 Parts Sabotaged . | . . . . Parts Stolen . | . . . . Parts Stripped . | . . . . Power Chain Reactions . | . . . . Alert | -11 -10 -10 -10 ------- Run | Yrd Mat Min Sub Maximum Alert Level . | . . . . Low Security (%) 100 | 100 100 100 . Level 1 . | . . . . Level 2 . | . . . . Level 3 . | . . . . Level 4 . | . . . . Level 5 . | . . . . High Security . | . . . . Max Security . | . . . . Peak Influence 90 | . 30 90 . Initial . | . . . . Average 12 | . 2 37 . Influence Increases 237 | . 47 120 70 Destroy 0b10 Robot/C 200 | . 40 100 60 Destroy 0b10 Robot/NC 5 | . 5 . . Destroy Leader 32 | . 2 20 10 Influence Decreases 237 | . 47 90 100 Entered New Map 16 | . . . 16 Time Decay 221 | . 47 90 84 Squads Dispatched . | . . . . Investigation . | . . . . Extermination . | . . . . Reinforcement . | . . . . Assault . | . . . . Garrison . | . . . . Intercept . | . . . . Searches Triggered . | . . . . Construction Impeded . | . . . . Haulers Reinforced . | . . . . Active Scanning Responses . | . . . . Cargo Convoy Interrupts . | . . . . Stealth | -11 -10 -10 -10 --------- Run | Yrd Mat Min Sub Distress Signals 2 | . 2 . . Communications Jammed . | . . . . Distress Signals . | . . . . Times Spotted 19 | . 7 6 6 Peak Tracking Total 3 | . 3 3 3 Tactical Retreats 3 | . 2 1 . ECM-based Alert Blocks 4 | . 2 2 . Traps | -11 -10 -10 -10 ------- Run | Yrd Mat Min Sub Traps Triggered 1 | . 1 . . Indirectly . | . . . . Trap Hack Attempts . | . . . . Triggered . | . . . . Disarmed . | . . . . Reprogrammed . | . . . . Reused . | . . . . Traps Extracted . | . . . . Installed . | . . . . Triggered . | . . . . Machines | -11 -10 -10 -10 ---------- Run | Yrd Mat Min Sub Machines Disabled . | . . . . Max in Single Turn . | . . . . Machines Repaired . | . . . . Machines Dismantled . | . . . . Machines Sabotaged . | . . . . Overloaded Fab Kills . | . . . . Hacking | -11 -10 -10 -10 --------- Run | Yrd Mat Min Sub Machines Accessed 1 | . . 1 . Terminals 1 | . . 1 . Fabricators . | . . . . Repair Stations . | . . . . Recycling Units . | . . . . Scanalyzers . | . . . . Garrison Access . | . . . . Total Hacks 1 | . . 1 . Successful 1 | . . 1 . Failed . | . . . . Catastrophic . | . . . . Database Lockouts . | . . . . Manual . | . . . . Terminals 1 | . . 1 . Fabricators . | . . . . Repair Stations . | . . . . Recycling Units . | . . . . Scanalyzers . | . . . . Garrison Access . | . . . . Terminal Hacks 1 | . . 1 . Record 1 | . . 1 . Fabricator Hacks . | . . . . Repair Station Hacks . | . . . . Recycling Unit Hacks . | . . . . Scanalyzer . | . . . . Garrison Access Hacks . | . . . . Unauthorized Hacks . | . . . . Terminals . | . . . . Fabricators . | . . . . Repair Stations . | . . . . Recycling Units . | . . . . Scanalyzers . | . . . . Garrison Access . | . . . . Data Cores Recovered . | . . . . Used . | . . . . Hacking Detections 1 | . . 1 . Full Trace Events . | . . . . Feedback Events . | . . . . Feedback Blocked . | . . . . Robot Schematics Acquired . | . . . . Robots Built . | . . . . Authchips . | . . . . Time . | . . . . Total Robot Build Rating . | . . . . Part Schematics Acquired . | . . . . Parts Built . | . . . . Authchips . | . . . . Time . | . . . . Total Part Build Rating . | . . . . Part Studies Acquired . | . . . . Parts Repaired . | . . . . Time . | . . . . Parts Recycled . | . . . . Recycled Matter . | . . . . Retrieved Matter . | . . . . Retrieved Components . | . . . . Parts Scanalyzed . | . . . . Part Schematics Acquired . | . . . . Parts Damaged . | . . . . Bothacking | -11 -10 -10 -10 ------------ Run | Yrd Mat Min Sub Used RIF Installer . | . . . . Robots Hacked . | . . . . Non-combat . | . . . . Combat . | . . . . Robot Hacks Applied . | . . . . Relay Couplers Released . | . . . . Fabnet Peak Effective % . | . . . . Robots Rewired . | . . . . Allies Hacked . | . . . . Hacks Repelled . | . . . . Allies | -11 -10 -10 -10 -------- Run | Yrd Mat Min Sub Total Allies . | . . . . Largest Group . | . . . . Highest-Rated Group . | . . . . Highest-Rated Ally . | . . . . Total Orders . | . . . . Ally Attacks . | . . . . Total Damage . | . . . . Kills . | . . . . Allies Corrupted . | . . . . Allies Melted . | . . . . Intel | -11 -10 -10 -10 ------- Run | Yrd Mat Min Sub Active Infowar (turns) 1189 | . 329 235 625 ECM 1189 | . 329 235 625 Robot Analysis Total . | . . . . Derelict Logs Recovered 1 | . . . 1 Drone Launches . | . . . . Drone Recoveries . | . . . . Exploration | -11 -10 -10 -10 ------------- Run | Yrd Mat Min Sub Turns Passed 1475 | 85 472 235 683 Spaces Moved 801 | 60 261 119 361 Core 23 | 23 . . . Treads 749 | 37 261 119 332 Legs 29 | . . . 29 Wheels . | . . . . Hover . | . . . . Flight . | . . . . Fastest Speed 50 | 50 160 160 120 Average Speed 155 | 117 160 160 156 Slowest Speed 160 | 160 160 160 160 Overloaded Moves . | . . . . Propulsion Burnouts . | . . . . Robots Hopped . | . . . . Potential Cave-ins . | . . . . Cave-ins Triggered . | . . . . Exploration Rate (%) 22 | 4 31 26 27 Regions Visited 3 Branch Regions 2 Pre-discovered Areas . | . . . . Known Exits Taken . | . . . . Unknown Exits Taken 3 | 1 1 1 . Scrap Searched . | . . . . Spaces Dug . | . . . . Terrain Destroyed . | . . . . Melee . | . . . . Projectile . | . . . . AOE . | . . . . Terrain Rammed . | . . . . Walls Destroyed . | . . . . Machines Disabled . | . . . . Actions | -11 -10 -10 -10 --------- Run | Yrd Mat Min Sub Total 917 | 74 294 139 410 Wait 12 | . 7 4 1 Move 798 | 59 260 118 361 Hop . | . . . . Pick Up 18 | 10 7 1 . Fast Attach . | . . . . Attach 11 | 5 2 . 4 Detach . | . . . . Swap 4 | . 1 1 2 Drop 3 | . 3 . . Fire 71 | . 14 15 42 Melee . | . . . . Ram . | . . . . Kick . | . . . . Crush . | . . . . Escape Stasis . | . . . . Rewire . | . . . . Trap . | . . . . Miscellaneous . | . . . . Route ------- -11/Scrapyard -10/Materials -10/Mines -10/Subcaves History --------- Turn | Location | Event 12 | -11/Scrapyard | Discovered new exit (range 16) 86 | -11/Scrapyard | Entered Materials 307 | -10/Materials | Build established: Mutant 547 | -10/Materials | Discovered new exit (range 7) 558 | -10/Materials | Entered Mines 578 | -10/Mines | Met a Derelict bent on vengeance 748 | -10/Mines | Found a hidden stash of uninstalled traps 774 | -10/Mines | Discovered new exit (range 10) 793 | -10/Mines | Entered Subcaves 794 | -10/Subcaves | Approached by a straggling Scientist 1284 | -10/Subcaves | A swath of the cavern ceiling suddenly collapsed 1380 | -10/Subcaves | Core integrity fell below 50% 1427 | -10/Subcaves | Core integrity fell below 20% 1451 | -10/Subcaves | Shifting Twisted Machinery released Mak. System Restoration Module 1451 | -10/Subcaves | Lost 5 parts (2n1u2w) 1456 | -10/Subcaves | Shifting Twisted Machinery released Sub. Power Source 1476 | -10/Subcaves | Destroyed by 19-I53(R) with Subdweller Machine Gun Last Messages --------------- Shield. IS-NBD(c) suffers critical hit (Destroy). KV-E35(R) suffers critical hit (Destroy). Lgt. Treads destroyed. IS-NBD(c): "I think it's somewhere northwest of here" Mining Laser destroyed. ECM Suite destroyed. Lgt. Assault Rifle destroyed. KV-E35(R) destroyed. Subatomizers dissect the Unknown Wheel. Acquired 56 matter. Subatomizers dissect the Unknown Wheel. Mak. System Restoration Module falls loose from the Twisted Machinery. IS-NBD(c): "I think it's somewhere northwest of here" Sub. Power Source falls loose from the Twisted Machinery. Aluminum Leg destroyed. Map ----- +----------------------------------------------------+ | ???????????????????????????????????????????????? | | ???????????????????????????????????????????????? | | ???????????????????????????????????????????????? | | ???????????????????????????????????????????????? | | ???????????????????????????????????????????????? | | ???????????????????????????????????????????????? | | ???????????????????????????????????????????????? | | ???????????????????????????????????????????????? | | ???????????????????????????????????????????????? | | ???????????????????????????????????????????????? | | ???????????????????????????????????????????????? | | ???????????????????????????????????????????????? | | ???????????????????????????????????????????????? | | ???????????????????????????????????????????????? | | ???????????????????????????????????????????????? | | ???????????????????????????????????????????????? | | ?????????????????????????? ##??????????????????? | | ?????????????????????????#" #??????????????????? | | ???????????????????????? "" ##?????????????????? | | ????????????????????????""" #?????????????????? | | ????????????????????????#""" #??##?????????????? | | ????????????????????#???#"" ### #?????????????? | | ???????????????????## ###"* #?????????????? | | ??????????????????## # #?????????????? | | ??????????????????# RR ##?????????????? | | ??????????????????# #@ c #?????????????? | | ??????????????????# ## # ##?????????????? | | ??????????????????## ?## ## #?????????????? | | ???????????????????# ?# "" #??????????????? | | ???????????????????# ??# """! #??????????????? | | ???????????????????###?## "" ##??????????????? | | ???????????????????????# " ####???????????????? | | ???????????????????????# ##?????????????????? | | ???????????????????????### #?????????????????? | | ?????????????????????????## ##????????????????? | | ??????????????????????????## #????????????????? | | ???????????????????????????# #????????????????? | | ??????????????????????????## ####?????????????? | | ?????????????????????????## #?????????????? | | ?????????????????????????# ##?????????????? | | ?????????????????????????# #??????????????? | | ?????????????????????????## #??????????????? | | ??????????????????????????# #??????????????? | | ???????????????????????##?# #??????????????? | | ???????????????????????#" ##"=&#??????????????? | | ???????????????????????#&# "" ##?????????????? | | ???????????????????????#?##"#"&""#?????????????? | | ??????????????????????????### """#?????????????? | | ???????????????????????????# ##?????????????? | | ??????????????????????##???# " #??????????????? | +----------------------------------------------------+ Best States ------------- Heat Dissipation 25 Energy Generation 14 Energy Capacity 160 Matter Stores 300 Matter Capacity 300 Sight Range 16 Terrain Scan Density 10 ECM Strength 1 Evasion (%) 50 Recoil Reduction 2 Item Schematics ----------------- None Robot Schematics ------------------ None Fabricated ------------ Nothing Repaired ---------- Nothing Studied --------- None Alien Tech Used ----------------- None Achievements -------------- None Challenges ------------ None Game ------ Seed MiniZeronetMask Manual? 0 Play Time 00:11:55 Cumulative 14.5 hours Start 2026.07.17 @ 06:38:01 End 2026.07.17 @ 06:46:34 Sessions 1 Manual Loads 0 Difficulty Rogue Special Mode None Game No. 29 Rogue 29 Adventurer 0 Explorer 0 Win Type - Total 0 Types 0/0/0/0/0/0/0/0/0/0 Lore% 14 Gallery% 15 Achievement% 11 Wizard Run 0 Options --------- Layout 1 ASCII 0 Keyboard 0 Movement Arrows Keybinds 0 Fullscreen 2 Font 24/Smallcaps Map View 50x40 Zoom Use 0% Tactical HUD 0 Map Filters NONE Filters NONE Steam 1 RUN: 9d520e73-e10a-49d8-ba0d-ae55dc4e1b00